Cogmind - Beta 13 @@@ ROGUE MODE // 2024.04.19 @ 12:42:06 Player: KIWA Result: Self-destructed Performance ------------- Evolutions (2) 1000 Regions Visited (5) 1000 Robots Destroyed (34) 170 Value Destroyed (724) 724 Prototype IDs (4) 80 Alien Tech Used (0) 0 Bonus (307) 307 TOTAL SCORE: 3281 Bonus ------- Follower Combat Kills 7 Aligned with FarCom 300 Cogmind --------- Core Integrity 526/550 Matter 123/300 Energy 33/100 System Corruption 11% Temperature Cool (0) Movement Walking (190) Ox1 Location -8/Materials Parts ------- > --- POWER (1) -------- (None) > --- PROPULSION (4) --- Improved Aluminum Leg Improved Aluminum Leg > --- UTILITY (4) ------ Improved Heat Sink Large Storage Unit Visual Processing Unit Signal Interpreter > --- WEAPON (2) ------- Latent Energy Streamer > --- INVENTORY (15) --- Nuclear Core Light Treads Light Treads Wheel Advanced Visual Processing Unit Sensor Array Improved Sensor Array Terrain Scanner Improved EM Shotgun Improved EM Shotgun Rocket Launcher Rocket Launcher Rocket Launcher Peak State ------------ > --- POWER ------------ Improved Ion Engine > --- PROPULSION ------- Improved Aluminum Leg Improved Aluminum Leg Improved Aluminum Leg > --- UTILITY ---------- Large Storage Unit Visual Processing Unit Improved Sensor Array Signal Interpreter > --- WEAPON ----------- Latent Energy Streamer Rocket Launcher > --- INVENTORY -------- Improved Ion Engine Light Treads Light Treads Wheel Improved Heat Sink Sensor Array Terrain Scanner Improved EM Shotgun Improved EM Shotgun Beam Cannon Rocket Launcher Rocket Launcher [Rating: 29] Favorites ----------- Power Improved Ion Engine Engine Improved Ion Engine Propulsion Improved Aluminum Leg Treads Light Treads Leg Improved Aluminum Leg Utility Large Storage Unit Device Sensor Array Storage Large Storage Unit Processor Visual Processing Unit Weapon Improved EM Shotgun Energy Gun Improved EM Shotgun Energy Cannon Latent Energy Streamer Ballistic Gun Assault Rifle Launcher Rocket Launcher Slashing Weapon Longsword +1 Build | -11 -10 -10 -10 -9 -8 ------- Run | Yrd Mat Min Exi Min Mat Slots Evolved 4 | . . . . . 4 Power . | . . . . . . Propulsion 2 | . . . . . 2 Utility 2 | . . . . . 2 Weapon . | . . . . . . Parts Attached 50 | 3 28 5 6 2 6 Power 5 | . 4 . 1 . . Engine 5 | . 4 . 1 . . Core . | . . . . . . Reactor . | . . . . . . Propulsion 12 | 2 8 . 1 . 1 Treads 2 | 2 . . . . . Leg 10 | . 8 . 1 . 1 Wheel . | . . . . . . Hover . | . . . . . . Flight . | . . . . . . Utility 11 | . 4 . 2 1 4 Device 7 | . 2 . 2 . 3 Storage 2 | . 2 . . . . Processor 2 | . . . . 1 1 Hackware . | . . . . . . Protection . | . . . . . . Artifact . | . . . . . . Weapon 22 | 1 12 5 2 1 1 Energy Gun 9 | 1 6 2 . . . Energy Cannon 5 | . 3 . 1 . 1 Ballistic Gun 3 | . 3 . . . . Ballistic Cannon . | . . . . . . Launcher 4 | . . 3 . 1 . Special Weapon . | . . . . . . Impact Weapon . | . . . . . . Slashing Weapon 1 | . . . 1 . . Piercing Weapon . | . . . . . . Special Melee Weapon . | . . . . . . Unidentified Prototypes 4 | . 1 . 3 . . Parts Lost 8 | . 5 . . . 3 Power 2 | . 1 . . . 1 Propulsion 2 | . 1 . . . 1 Utility . | . . . . . . Weapon 4 | . 3 . . . 1 Highest Loss Streak 3 | . 2 . . . 3 To Critical Strikes . | . . . . . . Average Slot Usage (%) 95 | . 95 100 89 100 89 Engine 13 | . 14 14 14 14 9 Treads 1 | . 4 . . . . Leg 26 | . 23 28 28 28 26 Device 10 | . 10 14 4 1 9 Storage 13 | . 14 14 14 14 9 Processor 2 | . . . . 12 18 Energy Gun 12 | . 17 13 14 7 . Energy Cannon 5 | . 4 . 9 14 12 Ballistic Gun 1 | . 6 . . . . Launcher 6 | . . 14 4 7 5 Naked Turns . | . . . . . . Heaviest Build 42 | 14 34 36 41 41 42 Greatest Support 40 | 40 40 26 26 26 39 Greatest Overweight (x) 2 | . 2 1 1 1 1 Average Overweight (x) . | . . 1 1 1 1 Largest Inventory Capacity 15 | 8 15 15 15 15 15 Average Capacity 13 | 8 10 15 15 15 15 Most Carried 15 | 6 11 12 15 13 13 Average Carried 10 | 6 7 11 13 13 12 Final Capacity 15 | 8 15 15 15 15 15 Final Carried 13 | 6 11 12 13 13 13 Class Distribution -------------------- 87% | Mutant 12% | Skirmisher Dominant Class ---------------- Mutant | -10/Materials Mutant | -10/Mines Mutant | -10/Exiles Mutant | -9/Mines Skirmisher | -8/Materials Resources | -11 -10 -10 -10 -9 -8 ----------- Run | Yrd Mat Min Exi Min Mat Matter Collected 712 | 230 268 71 . . 143 Remotely . | . . . . . . Salvage Created 1097 | . 710 110 . . 277 Parts 71 | . 43 9 . . 19 Haulers Intercepted 3 | . 2 . . . 1 Recyclers Shooed . | . . . . . . Parts Field Recycled . | . . . . . . Retrieved Matter . | . . . . . . Parts Self-Destructed . | . . . . . . Prevented . | . . . . . . Kills | -11 -10 -10 -10 -9 -8 ------- Run | Yrd Mat Min Exi Min Mat Combat Hostiles Destroyed 22 | . 15 5 . . 2 Guns 10 | . 8 2 . . . Cannons 3 | . 3 . . . . AOE 9 | . 4 3 . . 2 Classes Destroyed 10 | . 8 . . . 2 Worker 2 | . 1 . . . 1 Builder 2 | . 1 . . . 1 Tunneler 1 | . . . . . 1 Hauler 3 | . 2 . . . 1 Recycler 1 | . 1 . . . . Operator 1 | . 1 . . . . Watcher 2 | . 1 . . . 1 Swarmer 8 | . 6 2 . . . Grunt 13 | . 9 3 . . 1 Sentry 1 | . . . . . 1 Best Kill Streak 6 | . 6 3 . . 2 Combat Bots Only 5 | . 5 3 . . 1 Max Kills in Single Turn 3 | . 3 3 . . 2 Gunslinging . | . . . . . . Exploded 3 | . 3 3 . . 1 Melee . | . . . . . . Uniques/NPCs Destroyed . | . . . . . . Combat | -11 -10 -10 -10 -9 -8 -------- Run | Yrd Mat Min Exi Min Mat Hostile Shots Fired 155 | . 139 5 . . 11 Missed 43 | . 40 . . . 3 Damage Taken 1313 | . 1019 75 . . 219 Core 216 | . 172 20 . . 24 Absorbed by Shields . | . . . . . . Core Remaining (%) 61 | 100 . . . 23 . Volleys Fired 79 | . 66 5 . . 8 Largest 2 | . 2 2 . . 2 Hottest 120 | . 105 66 . . 120 Shots Fired 140 | . 124 7 . . 9 Gun 97 | . 94 3 . . . Cannon 39 | . 30 . . . 9 Launcher 4 | . . 4 . . . Special . | . . . . . . Kinetic 46 | . 46 . . . . Thermal 48 | . 44 . . . 4 Explosive 4 | . . 4 . . . Electromagnetic 42 | . 34 3 . . 5 Robot Hit Streak 11 | . 11 3 . . 2 Robot Miss Streak 4 | . 4 1 . . 3 Penetration Max . | . . . . . . Secondary Targets 1 | . 1 . . . . Max Gunslinging Chain 1 | . 1 . . . . Shots Hit Robots 92 | . 85 5 . . 2 Core Hits 49 | . 33 7 . . 9 Critical Kills . | . . . . . . Critical Parts Destroyed . | . . . . . . Critical Strikes 1 | . 1 . . . . Burn 1 | . 1 . . . . Melee Attacks . | . . . . . . Impact . | . . . . . . Slashing . | . . . . . . Piercing . | . . . . . . Sneak Attacks . | . . . . . . Combat Hostiles . | . . . . . . Follow-up Attacks . | . . . . . . Damage Inflicted 2176 | . 1452 236 . . 488 Guns 982 | . 944 38 . . . Cannons 383 | . 353 . . . 30 Explosions 779 | . 132 193 . . 454 Melee . | . . . . . . Ramming 32 | . 23 5 . . 4 Kinetic 408 | . 408 . . . . Thermal 641 | . 624 . . . 17 Explosive 193 | . . 193 . . . Electromagnetic 902 | . 397 38 . . 467 Impact . | . . . . . . Slashing . | . . . . . . Piercing . | . . . . . . Highest Corruption 11 | . . . . . 11 Average Corruption 5 | . . . . . 5 Corruption Purged . | . . . . . . Corruption Blocked . | . . . . . . Effects 6 | . . . . . 6 Matter Fused 2 | . . . . . 2 Parts Fused 1 | . . . . . 1 Data Loss (major) 2 | . . . . . 2 Weapon Failures 1 | . . . . . 1 Overload Shots . | . . . . . . Overflow Damage 92 | . 50 . . . 42 Projectiles 30 | . 30 . . . . Explosions 62 | . 20 . . . 42 Melee . | . . . . . . Knockbacks 1 | . . 1 . . . Impact 1 | . . 1 . . . Kinetic . | . . . . . . Secondary . | . . . . . . Self-Inflicted Damage 96 | . . . . . 96 Shots 3 | . . . . . 3 Rammed . | . . . . . . Targets Rammed 10 | . 8 1 . . 1 Kicked 10 | . 8 1 . . 1 Crushed . | . . . . . . Highest Temperature 364 | . 364 33 . . 54 Average Temperature 92 | . 100 14 . . 21 Received Heat Transfer 516 | . 438 15 . . 63 Effects 7 | . 7 . . . . Energy Bleed 3 | . 3 . . . . Interference 3 | . 3 . . . . Matter Decay 1 | . 1 . . . . Siege Activations . | . . . . . . Robots Corrupted 1 | . . . . . 1 Combat Hostiles . | . . . . . . Parts Fried 1 | . . . . . 1 Impact Corruptions . | . . . . . . Robots Melted . | . . . . . . Combat Hostiles . | . . . . . . Parts Melted . | . . . . . . Heat Transferred 1408 | . 1371 . . . 37 Parts Sabotaged . | . . . . . . Parts Stolen . | . . . . . . Parts Stripped . | . . . . . . Power Chain Reactions 4 | . 2 . . . 2 Latent Energy Used 603 | . . . . . 603 LE Corruption 11 | . . . . . 11 Alert | -11 -10 -10 -10 -9 -8 ------- Run | Yrd Mat Min Exi Min Mat Peak Influence 238 | . 238 227 . . 87 Initial 92 | . . 92 . . . Average 61 | . 65 79 . . 19 Maximum Alert Level 1 | . 1 1 . . . Low Security (%) 91 | 100 89 89 . 100 100 Level 1 8 | . 10 10 . . . Level 2 . | . . . . . . Level 3 . | . . . . . . Level 4 . | . . . . . . Level 5 . | . . . . . . High Security . | . . . . . . Max Security . | . . . . . . Squads Dispatched 6 | . 4 . . . 2 Investigation 3 | . 2 . . . 1 Extermination . | . . . . . . Reinforcement 3 | . 2 . . . 1 Assault . | . . . . . . Garrison . | . . . . . . Intercept . | . . . . . . Searches Triggered . | . . . . . . Construction Impeded 1 | . . . . . 1 Haulers Reinforced . | . . . . . . Active Scanning Responses . | . . . . . . Cargo Convoy Interrupts . | . . . . . . Stealth | -11 -10 -10 -10 -9 -8 --------- Run | Yrd Mat Min Exi Min Mat Distress Signals 5 | . 4 . . . 1 Communications Jammed . | . . . . . . Distress Signals . | . . . . . . Times Spotted 39 | . 24 7 . . 8 Peak Tracking Total 7 | . 7 3 . . 5 Tactical Retreats 1 | . . 1 . . . Traps | -11 -10 -10 -10 -9 -8 ------- Run | Yrd Mat Min Exi Min Mat Traps Triggered 1 | . 1 . . . . Indirectly . | . . . . . . Trap Hack Attempts . | . . . . . . Triggered . | . . . . . . Disarmed . | . . . . . . Reprogrammed . | . . . . . . Reused . | . . . . . . Traps Extracted . | . . . . . . Installed . | . . . . . . Triggered . | . . . . . . Machines | -11 -10 -10 -10 -9 -8 ---------- Run | Yrd Mat Min Exi Min Mat Machines Disabled 3 | . 2 . . . 1 Max in Single Turn 1 | . 1 . . . 1 Machines Repaired . | . . . . . . Machines Dismantled . | . . . . . . Machines Sabotaged . | . . . . . . Overloaded Fab Kills . | . . . . . . Hacking | -11 -10 -10 -10 -9 -8 --------- Run | Yrd Mat Min Exi Min Mat Machines Accessed 7 | . 4 1 . . 2 Terminals 4 | . 4 . . . . Fabricators . | . . . . . . Repair Stations . | . . . . . . Recycling Units 1 | . . . . . 1 Scanalyzers 1 | . . . . . 1 Garrison Access . | . . . . . . Total Hacks 20 | . 10 1 . . 9 Successful 12 | . 4 1 . . 7 Failed 8 | . 6 . . . 2 Catastrophic 3 | . 3 . . . . Database Lockouts . | . . . . . . Manual 1 | . . . 1 . . Terminals 10 | . 10 . . . . Fabricators . | . . . . . . Repair Stations . | . . . . . . Recycling Units 3 | . . . . . 3 Scanalyzers 6 | . . . . . 6 Garrison Access . | . . . . . . Terminal Hacks 5 | . 4 1 . . . Open Door 1 | . . 1 . . . Alert Level 1 | . 1 . . . . Locate Traps 2 | . 2 . . . . Recall Investigation 1 | . 1 . . . . Fabricator Hacks . | . . . . . . Repair Station Hacks . | . . . . . . Recycling Unit Hacks 3 | . . . . . 3 Report Inventory 2 | . . . . . 2 Retrieve Components 1 | . . . . . 1 Scanalyzer 4 | . . . . . 4 Insert Component 2 | . . . . . 2 Analyze 2 | . . . . . 2 Garrison Access Hacks . | . . . . . . Unauthorized Hacks . | . . . . . . Terminals . | . . . . . . Fabricators . | . . . . . . Repair Stations . | . . . . . . Recycling Units . | . . . . . . Scanalyzers . | . . . . . . Garrison Access . | . . . . . . Data Cores Recovered . | . . . . . . Used . | . . . . . . Hacking Detections 4 | . 2 . . . 2 Full Trace Events 2 | . 1 . . . 1 Feedback Events . | . . . . . . Feedback Blocked . | . . . . . . Robot Schematics Acquired . | . . . . . . Robots Built . | . . . . . . Authchips . | . . . . . . Time . | . . . . . . Total Robot Build Rating . | . . . . . . Part Schematics Acquired 2 | . . . . . 2 Parts Built . | . . . . . . Authchips . | . . . . . . Time . | . . . . . . Total Part Build Rating . | . . . . . . Parts Repaired . | . . . . . . Time . | . . . . . . Parts Recycled . | . . . . . . Recycled Matter . | . . . . . . Retrieved Matter . | . . . . . . Retrieved Components 2 | . . . . . 2 Parts Scanalyzed 2 | . . . . . 2 Part Schematics Acquired 2 | . . . . . 2 Parts Damaged . | . . . . . . Bothacking | -11 -10 -10 -10 -9 -8 ------------ Run | Yrd Mat Min Exi Min Mat Used RIF Installer . | . . . . . . Robots Hacked . | . . . . . . Non-combat . | . . . . . . Combat . | . . . . . . Robot Hacks Applied . | . . . . . . Relay Couplers Released . | . . . . . . Fabnet Peak Effective % . | . . . . . . Robots Rewired . | . . . . . . Allies Hacked . | . . . . . . Hacks Repelled . | . . . . . . Allies | -11 -10 -10 -10 -9 -8 -------- Run | Yrd Mat Min Exi Min Mat Total Allies 3 | . . 3 . . . Largest Group 3 | . . 3 2 . . Highest-Rated Group 75 | . . 75 44 . . Highest-Rated Ally 31 | . . 31 31 . . Total Orders . | . . . . . . Ally Attacks 6 | . . 6 . . . Total Damage 78 | . . 78 . . . Kills 1 | . . 1 . . . Allies Corrupted . | . . . . . . Allies Melted . | . . . . . . Intel | -11 -10 -10 -10 -9 -8 ------- Run | Yrd Mat Min Exi Min Mat Robot Analysis Total . | . . . . . . Derelict Logs Recovered 1 | . . 1 . . . Drone Launches . | . . . . . . Drone Recoveries . | . . . . . . Exploration | -11 -10 -10 -10 -9 -8 ------------- Run | Yrd Mat Min Exi Min Mat Turns Passed 3622 | 10 1144 1195 729 76 468 Spaces Moved 1641 | 4 422 605 378 35 197 Core . | . . . . . . Treads 10 | 4 6 . . . . Legs 1631 | . 416 605 378 35 197 Wheels . | . . . . . . Hover . | . . . . . . Flight . | . . . . . . Fastest Speed 120 | 160 120 190 190 190 190 Average Speed 179 | 160 149 190 190 190 190 Slowest Speed 260 | 160 260 190 190 190 190 Overloaded Moves . | . . . . . . Propulsion Burnouts . | . . . . . . Robots Hopped . | . . . . . . Cave-ins Triggered . | . . . . . . Exploration Rate (%) 46 | 2 63 98 88 11 14 Regions Visited 5 Branch Regions 3 Pre-discovered Areas 1 | . . 1 . . . Known Exits Taken . | . . . . . . Unknown Exits Taken 5 | 1 1 1 1 1 . Scrap Searched 1 | . . 1 . . . Spaces Dug . | . . . . . . Terrain Destroyed 95 | . 9 40 . . 46 Melee . | . . . . . . Projectile . | . . . . . . AOE 95 | . 9 40 . . 46 Terrain Rammed . | . . . . . . Walls Destroyed . | . . . . . . Machines Disabled . | . . . . . . Actions | -11 -10 -10 -10 -9 -8 --------- Run | Yrd Mat Min Exi Min Mat Total 2163 | 6 806 641 388 44 278 Wait 344 | . 250 25 . 8 61 Move 1636 | 3 421 604 377 34 197 Hop . | . . . . . . Pick Up 28 | . 20 1 3 . 4 Fast Attach . | . . . . . . Attach 11 | . 6 . 2 . 3 Detach . | . . . . . . Swap 39 | 3 22 5 4 2 3 Drop 16 | . 13 . 2 . 1 Fire 79 | . 66 5 . . 8 Melee . | . . . . . . Ram . | . . . . . . Kick 10 | . 8 1 . . 1 Crush . | . . . . . . Escape Stasis . | . . . . . . Rewire . | . . . . . . Trap . | . . . . . . Miscellaneous . | . . . . . . Route ------- -11/Scrapyard -10/Materials (discovered 4 exits: [*Mat x2] / *Min / [Sub]) -10/Mines (discovered 3 exits: [*Mat x2] / *Exi) -10/Exiles -9/Mines -8/Materials History --------- Turn | Location | Event 6 | -11/Scrapyard | Discovered new exit (range 2) 11 | -11/Scrapyard | Entered Materials 315 | -10/Materials | Build established: Mutant 419 | -10/Materials | Discovered new exit (range 13) 691 | -10/Materials | Discovered new exit (range 10) 812 | -10/Materials | Discovered new exit (range 11) 912 | -10/Materials | Discovered new exit (range 8) 1005 | -10/Materials | Core integrity fell below 50% 1155 | -10/Materials | Entered Mines 1201 | -10/Mines | Learned Materials terminal intel 1317 | -10/Mines | Discovered new exit (range 11) 1375 | -10/Mines | Met a Derelict who couldn't figure out how to use a Trap Extractor 1497 | -10/Mines | Discovered new exit (range 12) 1506 | -10/Mines | Learned location of Storage (-7) 1748 | -10/Mines | Received a Rocket Launcher from a helpful Derelict 2240 | -10/Mines | Escorted by a lone wolf Derelict 2343 | -10/Mines | Deemed a non-threat by the Exiles lab entrance 2343 | -10/Mines | Discovered new exit (range 5) 2350 | -10/Mines | Entered Exiles 2350 | -10/Exiles | Accompanied by 3 allies 2380 | -10/Exiles | Led the pair of lost Derelicts to a safe place 2400 | -10/Exiles | Met 8R-AWN 2432 | -10/Exiles | Met EX-HEX 2495 | -10/Exiles | Met EX-BIN 2518 | -10/Exiles | Aligned with FarCom system 2520 | -10/Exiles | Given EX-Vault access code 2563 | -10/Exiles | Opened EX-Vault 2575 | -10/Exiles | Found Prototype Device 2576 | -10/Exiles | Identified PSU Rigger 2581 | -10/Exiles | Found Prototype Slashing Weapon 2582 | -10/Exiles | Identified Longsword +1 2588 | -10/Exiles | Found Prototype Energy Cannon 2589 | -10/Exiles | Identified Latent Energy Streamer 2628 | -10/Exiles | Warned to stay clear of 0b10 Research branches 2691 | -10/Exiles | Met EX-DEC 2798 | -10/Exiles | Visited The Gauntlet 3048 | -10/Exiles | Discovered new exit (range 14) 3079 | -10/Exiles | Left Exiles lab with Latent Energy Streamer 3079 | -10/Exiles | Entered Mines 3081 | -9/Mines | Met a Derelict bent on vengeance 3088 | -9/Mines | Discovered new exit (range 16) 3155 | -9/Mines | Entered Materials 3155 | -8/Materials | Evolved 4 slots: Propulsion x2, Utility x2 3156 | -8/Materials | Loaded intel: 12 terminal locations 3469 | -8/Materials | Build established: Skirmisher 3614 | -8/Materials | System corruption reached 10% 3623 | -8/Materials | Self-destructed Last Messages --------------- 03606_ U-05 Engineer builds a Wall. 03610_ K-01 Serf collects debris. 03611_ U-05 Engineer lays Concrete. 03611_ K-01 Serf collects debris. 03611_ U-05 Engineer lays Concrete. 03613_ U-05 Engineer destroyed. 03614_ K-01 Serf collects debris. 03614_ U-05 Engineer lays Concrete. 03615_ Imp. Aluminum Leg destroyed. 03616_ U-05 Engineer lays Concrete. 03617_ K-01 Serf collects debris. 03617_ U-05 Engineer lays Concrete. 03619_ System corrupted: Matter fused (-10). 03619_ System corrupted: Latent Energy Streamer failed to cycle. 03621_ Chain reaction triggered in Imp. Ion Engine. 03621_ K-01 Serf destroyed. 03621_ K-01 Serf collects debris. 03621_ Beam Cannon destroyed. Map ----- +----------------------------------------------------+ | ?????????????????????????????????????????????????? | | ?????????????????? ??????????????????????????????? | | ???????########### ??????????????????????????????? | | #####??# # ??????????????????????????????? | | """ #??# # #?????????????????????????????? | | "Y" #### # #?????????????????????????????? | | *+ ## * # #?????????????????????????????? | | # ####+##+#### ##??????????"?????????????????? | | # #### #??????????T?????????????????? | | # #??????????"?????????????????? | | ######"### #????????????????????????????? | | ??## """"###/#### #????????????????????????????? | | ???# # #?# #????????????????????????????? | | ???# " #?# #????????????????????????????? | | ???##" #?# #????????????????????????????? | | ????## #?# #???????????????????!#???????? | | ?????# #?# #?????????????????? #??????"? | | ?????# #?#gg #????????????????"" #?????"?? | | ?????# #?# g##???????????????""" #???? ??? | | ?????# ### #???????????????""" #??? ??? | | ?????# ### ###????????????""" #w? ""??? | | ?????######+##### #????????????" #? """"?? | | ?????# ####????????w [? """"?? | | ?????# #;###########/### """""? | | ?????# * k """ | | ?????############ != @ =%= | | ?????????# "" # %%| | | ????????##! ""S # #### ;#;##########+########## | | ?????????# "" % #??######???# #??????? | | ?????????# # #???????????# #??????? | | ?????????# # #???????????# #??????? | | ??????? / # #???????????# #??????? | | ??????#####/##### #???????????# #??????? | | ??????????# ????# #???????????# #??????? | | ????#?????#?????# #???????????# #??????? | | ????????????????# +???????????# #??????? | | ????????????????# #???????????###########??????? | | ????????????????# #????????????????????????????? | | ????????????????# #????????????????????????????? | | ????????????????# #????????????????????????????? | | ????????????????# #????????????????????????????? | | ????????????????# #????????????????????????????? | | ????????????????# +????????????????????????????? | | ????????????????# #????????????????????????????? | | ????????????????# #????????????????????????????? | | ????????????????# #????????????????????????????? | | ????????????????# #????????????????????????????? | | ????????????????# #????????????????????????????? | | ????????????????? ?????????????????????????????? | | ????????????????? ?????????????????????????????? | +----------------------------------------------------+ Best States ------------- Heat Dissipation 45 Energy Generation 12 Energy Capacity 265 Matter Stores 300 Matter Capacity 300 Sight Range 18 Robot Scan Range 15 Terrain Scan Range 14 Terrain Scan Density 10 Evasion (%) 55 Recoil Reduction 2 Item Schematics ----------------- Rocket Launcher | -8/Materials | Scanalyzed Adv. Visual Processing Unit | -8/Materials | Scanalyzed Robot Schematics ------------------ None Fabricated ------------ Nothing Alien Tech Used ----------------- None Achievements -------------- None Challenges ------------ None Game ------ Seed RiotFlightReconstructor Manual? 0 Play Time 00:28:27 Cumulative 16.3 hours Start 2024.04.19 @ 12:11:33 End 2024.04.19 @ 12:42:06 Sessions 1 Manual Loads 0 Difficulty Rogue Special Mode None Game No. 36 Rogue 36 Adventurer 0 Explorer 0 Win Type - Total 0 Types 0/0/0/0/0/0/0/0/0 Lore% 16 Gallery% 25 Achievement% 20 Wizard Run 0 Options --------- Layout 1 ASCII 0 Keyboard 0 Movement Mouse Keybinds 0 Fullscreen 2 Font 48/Smallcaps Map View 50x35 Zoom Use 0% Tactical HUD 1 Map Filters NONE Filters NONE Steam 1 RUN: 3f32d85e-f0ee-4d4e-b77d-653e0ef31eff